[Event "Kadett-SM 2025"]
[Site "Uppsala, Sweden"]
[Date "2025.06.30"]
[Round "1.1"]
[White "Alm, Vidar"]
[Black "Ljungros, Lo"]
[Result "0-1"]
[TimeControl "90 min for 40 move + 30 min with an increment of 30 sec starting move 1"]
[WhiteFideId "1786717"]
[BlackFideId "1760114"]
[WhiteElo "1713"]
[BlackElo "2051"]

1. e4 {[%clk 01:30:57]} {[%emt 00:00:02]} e6 {[%clk 01:30:54]} {[%emt
00:00:06]} 2. d3 {[%clk 01:31:24]} {[%emt 00:00:03]} d5 {[%clk 01:31:18]}
{[%emt 00:00:06]} 3. Nd2 {[%clk 01:31:51]} {[%emt 00:00:04]} Nf6 {[%clk
01:31:41]} {[%emt 00:00:07]} 4. Ngf3 {[%clk 01:32:14]} {[%emt 00:00:07]} Bc5
{[%clk 01:32:03]} {[%emt 00:00:08]} 5. e5 {[%clk 01:29:46]} {[%emt 00:02:58]}
Nfd7 {[%clk 01:30:40]} {[%emt 00:01:52]} 6. d4 {[%clk 01:30:03]} {[%emt
00:00:14]} Be7 {[%clk 01:31:04]} {[%emt 00:00:06]} 7. c3 {[%clk 01:30:00]}
{[%emt 00:00:32]} c5 {[%clk 01:31:27]} {[%emt 00:00:07]} 8. Be2 {[%clk
01:29:44]} {[%emt 00:00:46]} Nc6 {[%clk 01:31:49]} {[%emt 00:00:08]} 9. O-O
{[%clk 01:29:39]} {[%emt 00:00:36]} g5 {[%clk 01:32:02]} {[%emt 00:00:16]} 10.
Nb3 {[%clk 01:18:23]} {[%emt 00:11:47]} c4 {[%clk 01:22:47]} {[%emt 00:09:44]}
11. Nbd2 {[%clk 01:18:33]} {[%emt 00:00:20]} b5 {[%clk 01:21:37]} {[%emt
00:01:40]} 12. Ne1 {[%clk 01:04:54]} {[%emt 00:14:09]} Qb6 {[%clk 01:16:05]}
{[%emt 00:06:01]} 13. Kh1 {[%clk 01:02:08]} {[%emt 00:03:18]} f5 {[%clk
01:05:29]} {[%emt 00:11:06]} 14. exf6 {[%clk 00:45:24]} {[%emt 00:17:13]} Nxf6
{[%clk 01:04:00]} {[%emt 00:01:58]} 15. f4 {[%clk 00:43:35]} {[%emt 00:02:19]}
gxf4 {[%clk 01:00:21]} {[%emt 00:04:09]} 16. Ndf3 {[%clk 00:42:04]} {[%emt
00:02:01]} Bd7 {[%clk 00:26:57]} {[%emt 00:33:54]} 17. Bxf4 {[%clk 00:34:37]}
{[%emt 00:07:57]} O-O-O {[%clk 00:26:03]} {[%emt 00:01:24]} 18. Ne5 {[%clk
00:31:24]} {[%emt 00:03:43]} Nxe5 {[%clk 00:23:38]} {[%emt 00:02:55]} 19. Bxe5
{[%clk 00:31:43]} {[%emt 00:00:11]} Rhf8 {[%clk 00:23:59]} {[%emt 00:00:09]} 20.
Nf3 {[%clk 00:25:13]} {[%emt 00:06:59]} Ne4 {[%clk 00:22:13]} {[%emt 00:02:16]}
21. Qc2 {[%clk 00:23:45]} {[%emt 00:02:00]} Be8 {[%clk 00:21:00]} {[%emt
00:01:42]} 22. b3 {[%clk 00:19:42]} {[%emt 00:04:33]} Qa5 {[%clk 00:15:34]}
{[%emt 00:05:56]} 23. bxc4 {[%clk 00:13:37]} {[%emt 00:06:36]} Qxc3 {[%clk
00:14:54]} {[%emt 00:01:10]} 24. Bd3 {[%clk 00:13:47]} {[%emt 00:00:20]} Qxc2
{[%clk 00:12:30]} {[%emt 00:02:54]} 25. Bxc2 {[%clk 00:14:03]} {[%emt
00:00:13]} bxc4 {[%clk 00:12:01]} {[%emt 00:00:59]} 26. Bxe4 {[%clk 00:13:42]}
{[%emt 00:00:51]} dxe4 {[%clk 00:12:23]} {[%emt 00:00:08]} 27. Nd2 {[%clk
00:08:30]} {[%emt 00:05:42]} Rxf1+ {[%clk 00:12:14]} {[%emt 00:00:39]} 28. Rxf1
{[%clk 00:08:46]} {[%emt 00:00:13]} e3 {[%clk 00:08:09]} {[%emt 00:04:36]} 29.
Nxc4 {[%clk 00:09:05]} {[%emt 00:00:11]} e2 {[%clk 00:08:32]} {[%emt 00:00:07]}
30. Re1 {[%clk 00:02:10]} {[%emt 00:07:25]} Bh5 {[%clk 00:08:07]} {[%emt
00:00:55]} 31. h3 {[%clk 00:01:50]} {[%emt 00:00:49]} Bb4 {[%clk 00:08:14]}
{[%emt 00:00:24]} 32. Bg3 {[%clk 00:01:14]} {[%emt 00:01:05]} Bxe1 {[%clk
00:08:35]} {[%emt 00:00:09]} 33. Bxe1 {[%clk 00:01:32]} {[%emt 00:00:13]} Rxd4
{[%clk 00:08:58]} {[%emt 00:00:08]} 34. Ne3 {[%clk 00:01:19]} {[%emt 00:00:42]}
Rd1 {[%clk 00:09:20]} {[%emt 00:00:07]} 35. Nc2 {[%clk 00:01:21]} {[%emt
00:00:28]} Bg6 {[%emt 00:01:19]} 0-1

[Event "Kadett-SM 2025"]
[Site "Uppsala, Sweden"]
[Date "2025.06.30"]
[Round "1.2"]
[White "Prabu, Dananjey"]
[Black "Gultekin, Ece"]
[Result "1-0"]
[TimeControl "90 min for 40 move + 30 min with an increment of 30 sec starting move 1"]
[WhiteFideId "25744992"]
[BlackFideId "1772945"]
[WhiteElo "2047"]
[BlackElo "1704"]

1. e4 {[%clk 01:30:57]} {[%emt 00:00:01]} e5 {[%clk 01:30:59]} {[%emt
00:00:01]} 2. Nf3 {[%clk 01:31:18]} {[%emt 00:00:08]} Nc6 {[%clk 01:30:49]}
{[%emt 00:00:43]} 3. Bc4 {[%clk 01:31:38]} {[%emt 00:00:06]} Bc5 {[%clk
01:30:42]} {[%emt 00:00:39]} 4. d3 {[%clk 01:32:01]} {[%emt 00:00:07]} d6
{[%clk 01:30:56]} {[%emt 00:00:16]} 5. c3 {[%clk 01:31:52]} {[%emt 00:00:39]}
h6 {[%clk 01:30:10]} {[%emt 00:01:17]} 6. a4 {[%clk 01:31:59]} {[%emt
00:00:22]} a5 {[%clk 01:30:33]} {[%emt 00:00:08]} 7. Nbd2 {[%clk 01:31:04]}
{[%emt 00:01:25]} Nf6 {[%clk 01:30:32]} {[%emt 00:00:31]} 8. O-O {[%clk
01:30:45]} {[%emt 00:00:48]} g5 {[%clk 01:27:45]} {[%emt 00:03:18]} 9. Nb3
{[%clk 01:19:55]} {[%emt 00:11:20]} g4 {[%clk 01:25:16]} {[%emt 00:02:59]} 10.
Nh4 {[%clk 01:19:17]} {[%emt 00:01:07]} Nxe4 {[%clk 01:24:53]} {[%emt
00:00:53]} 11. dxe4 {[%clk 01:18:09]} {[%emt 00:01:38]} Qxh4 {[%clk 01:25:17]}
{[%emt 00:00:06]} 12. Nxc5 {[%clk 01:17:18]} {[%emt 00:01:22]} dxc5 {[%clk
01:25:33]} {[%emt 00:00:14]} 13. Qd5 {[%clk 01:05:56]} {[%emt 00:11:50]} Be6
{[%clk 01:25:39]} {[%emt 00:00:25]} 14. Qxc5 {[%clk 01:05:45]} {[%emt
00:00:41]} Bxc4 {[%clk 01:25:54]} {[%emt 00:00:15]} 15. Qxc4 {[%clk 01:06:08]}
{[%emt 00:00:07]} O-O-O {[%clk 01:20:03]} {[%emt 00:06:22]} 16. Be3 {[%clk
00:58:37]} {[%emt 00:07:59]} Rd7 {[%clk 01:18:19]} {[%emt 00:02:15]} 17. b4
{[%clk 00:54:17]} {[%emt 00:04:49]} axb4 {[%clk 01:18:40]} {[%emt 00:00:11]} 18.
a5 {[%clk 00:53:37]} {[%emt 00:01:10]} Nb8 {[%clk 01:08:20]} {[%emt 00:10:49]}
19. a6 {[%clk 00:50:24]} {[%emt 00:03:43]} bxa6 {[%clk 01:07:26]} {[%emt
00:01:24]} 20. Rxa6 {[%clk 00:50:35]} {[%emt 00:00:19]} Kd8 {[%clk 01:04:18]}
{[%emt 00:03:37]} 21. Ra8 {[%clk 00:47:21]} {[%emt 00:03:45]} 1-0

[Event "Kadett-SM 2025"]
[Site "Uppsala, Sweden"]
[Date "2025.06.30"]
[Round "1.3"]
[White "Uniyal, Hanns Ivar"]
[Black "Dingertz, Filip"]
[Result "1/2-1/2"]
[TimeControl "90 min for 40 move + 30 min with an increment of 30 sec starting move 1"]
[WhiteFideId "1779230"]
[BlackFideId "1757288"]
[WhiteElo "1700"]
[BlackElo "2043"]

1. c4 {[%clk 01:30:56]} {[%emt 00:00:03]} e6 {[%clk 01:29:59]} {[%emt
00:01:02]} 2. Nf3 {[%clk 01:30:11]} {[%emt 00:01:15]} d5 {[%clk 01:29:56]}
{[%emt 00:00:33]} 3. e3 {[%clk 01:30:31]} {[%emt 00:00:09]} Nf6 {[%clk
01:30:04]} {[%emt 00:00:23]} 4. Nc3 {[%clk 01:30:10]} {[%emt 00:00:50]} Be7
{[%clk 01:29:51]} {[%emt 00:00:43]} 5. b3 {[%clk 01:29:01]} {[%emt 00:01:40]}
O-O {[%clk 01:29:52]} {[%emt 00:00:29]} 6. Bb2 {[%clk 01:28:50]} {[%emt
00:00:41]} c6 {[%clk 01:24:38]} {[%emt 00:05:44]} 7. Be2 {[%clk 01:25:09]}
{[%emt 00:04:11]} Nbd7 {[%clk 01:24:28]} {[%emt 00:00:39]} 8. d4 {[%clk
01:25:07]} {[%emt 00:00:32]} b6 {[%clk 01:23:56]} {[%emt 00:01:03]} 9. O-O
{[%clk 01:25:02]} {[%emt 00:00:34]} Bb7 {[%clk 01:23:39]} {[%emt 00:00:47]} 10.
Rc1 {[%clk 01:11:58]} {[%emt 00:13:35]} c5 {[%clk 01:19:14]} {[%emt 00:04:54]}
11. cxd5 {[%clk 01:06:09]} {[%emt 00:06:20]} exd5 {[%clk 01:18:20]} {[%emt
00:01:23]} 12. Ne5 {[%clk 00:59:29]} {[%emt 00:07:10]} Nxe5 {[%clk 01:16:45]}
{[%emt 00:02:05]} 13. dxe5 {[%clk 00:58:15]} {[%emt 00:01:44]} Ne8 {[%clk
01:11:15]} {[%emt 00:06:00]} 14. Bd3 {[%clk 00:50:20]} {[%emt 00:08:24]} d4
{[%clk 01:00:29]} {[%emt 00:11:16]} 15. exd4 {[%clk 00:49:30]} {[%emt
00:01:20]} cxd4 {[%clk 01:00:51]} {[%emt 00:00:08]} 16. Ne4 {[%clk 00:48:03]}
{[%emt 00:01:57]} Qd5 {[%clk 00:54:16]} {[%emt 00:07:04]} 17. f4 {[%clk
00:42:43]} {[%emt 00:05:49]} Kh8 {[%clk 00:49:33]} {[%emt 00:05:14]} 18. Qf3
{[%clk 00:32:16]} {[%emt 00:10:58]} f5 {[%clk 00:29:00]} {[%emt 00:21:03]} 19.
Ng3 {[%clk 00:29:45]} {[%emt 00:03:00]} Qd7 {[%clk 00:22:26]} {[%emt 00:07:05]}
20. Qh5 {[%clk 00:26:29]} {[%emt 00:03:45]} g6 {[%clk 00:22:03]} {[%emt
00:00:53]} 21. Qe2 {[%clk 00:25:58]} {[%emt 00:01:01]} Nc7 {[%clk 00:16:52]}
{[%emt 00:05:42]} 22. Rfd1 {[%clk 00:19:38]} {[%emt 00:06:50]} Ne6 {[%clk
00:16:46]} {[%emt 00:00:36]} 23. Qf1 {[%clk 00:17:26]} {[%emt 00:02:41]} Bc5
{[%clk 00:15:18]} {[%emt 00:01:58]} 24. Kh1 {[%clk 00:16:32]} {[%emt 00:01:24]}
Rfd8 {[%clk 00:14:04]} {[%emt 00:01:44]} 25. Bb5 {[%clk 00:14:04]} {[%emt
00:02:58]} Qe7 {[%clk 00:14:16]} {[%emt 00:00:18]} 26. Bc4 {[%clk 00:14:01]}
{[%emt 00:00:33]} Bd5 {[%clk 00:09:52]} {[%emt 00:04:54]} 27. Ne2 {[%clk
00:12:13]} {[%emt 00:02:18]} Kg7 {[%clk 00:07:01]} {[%emt 00:03:21]} 28. Nxd4
{[%clk 00:08:51]} {[%emt 00:03:53]} Bxd4 {[%clk 00:06:05]} {[%emt 00:01:26]} 29.
Bxd4 {[%clk 00:09:06]} {[%emt 00:00:15]} Qb7 {[%clk 00:06:22]} {[%emt
00:00:12]} 30. Bxd5 {[%clk 00:06:31]} {[%emt 00:03:06]} Rxd5 {[%clk 00:06:46]}
{[%emt 00:00:06]} 31. Be3 {[%clk 00:06:48]} {[%emt 00:00:12]} Rad8 {[%clk
00:07:12]} {[%emt 00:00:04]} 32. Rxd5 {[%clk 00:06:55]} {[%emt 00:00:23]} Rxd5
{[%clk 00:07:04]} {[%emt 00:00:38]} 33. Qc4 {[%clk 00:05:57]} {[%emt 00:01:27]}
Qd7 {[%clk 00:07:24]} {[%emt 00:00:11]} 34. h3 {[%clk 00:05:49]} {[%emt
00:00:38]} Rd3 {[%clk 00:06:54]} {[%emt 00:01:00]} 35. Qc6 {[%clk 00:04:22]}
{[%emt 00:01:57]} Qxc6 {[%clk 00:04:20]} {[%emt 00:03:04]} 36. Rxc6 {[%clk
00:04:42]} {[%emt 00:00:11]} Kf7 {[%clk 00:04:47]} {[%emt 00:00:03]} 37. Bc1
{[%clk 00:04:43]} {[%emt 00:00:29]} Rd1+ {[%clk 00:04:19]} {[%emt 00:00:58]} 38.
Kh2 {[%clk 00:05:00]} {[%emt 00:00:12]} Rf1 {[%clk 00:04:30]} {[%emt 00:00:19]}
39. a4 {[%clk 00:02:16]} {[%emt 00:03:15]} Nxf4 {[%clk 00:04:16]} {[%emt
00:00:43]} 40. Bxf4 {[%clk 00:01:48]} {[%emt 00:00:58]} Rxf4 {[%clk 00:04:37]}
{[%emt 00:00:09]} 41. Rc7+ {[%clk 00:01:36]} {[%emt 00:00:42]} Ke6 {[%clk
00:04:57]} {[%emt 00:00:10]} 42. Rxa7 {[%clk 00:01:02]} {[%emt 00:01:05]} Rb4
{[%clk 00:05:03]} {[%emt 00:00:23]} 43. Rxh7 {[%clk 00:26:39]} {[%emt
00:04:53]} Kxe5 {[%clk 00:35:14]} {[%emt 00:00:19]} 44. Rb7 {[%clk 00:24:47]}
{[%emt 00:02:23]} Rxb3 {[%clk 00:34:41]} {[%emt 00:01:03]} 45. a5 {[%clk
00:24:17]} {[%emt 00:00:59]} b5 {[%clk 00:34:57]} {[%emt 00:00:14]} 46. a6
{[%clk 00:24:25]} {[%emt 00:00:23]} Kf4 {[%clk 00:34:53]} {[%emt 00:00:31]} 47.
a7 {[%clk 00:23:51]} {[%emt 00:01:06]} Ra3 {[%clk 00:35:16]} {[%emt 00:00:07]}
48. Rxb5 {[%clk 00:23:21]} {[%emt 00:01:00]} Rxa7 {[%clk 00:35:37]} {[%emt
00:00:10]} 49. Rb4+ {[%clk 00:22:53]} {[%emt 00:00:58]} Kg5 {[%clk 00:35:56]}
{[%emt 00:00:10]} 1/2-1/2

[Event "Kadett-SM 2025"]
[Site "Uppsala, Sweden"]
[Date "2025.06.30"]
[Round "1.4"]
[White "Bergman, Axel"]
[Black "Ostafiev, Christina"]
[Result "1-0"]
[TimeControl "90 min for 40 move + 30 min with an increment of 30 sec starting move 1"]
[WhiteFideId "1772694"]
[BlackFideId "1767577"]
[WhiteElo "2034"]
[BlackElo "1675"]

1. e4 {[%clk 01:30:57]} {[%emt 00:00:02]} e5 {[%clk 01:30:47]} {[%emt
00:00:13]} 2. Nf3 {[%clk 01:30:34]} {[%emt 00:00:53]} Nc6 {[%clk 01:30:47]}
{[%emt 00:00:31]} 3. Bb5 {[%clk 01:30:52]} {[%emt 00:00:11]} a6 {[%clk
01:29:22]} {[%emt 00:01:56]} 4. Ba4 {[%clk 01:31:13]} {[%emt 00:00:08]} d6
{[%clk 01:27:03]} {[%emt 00:02:49]} 5. c3 {[%clk 01:22:05]} {[%emt 00:09:38]}
Nf6 {[%clk 01:15:56]} {[%emt 00:11:37]} 6. d4 {[%clk 01:00:13]} {[%emt
00:22:21]} exd4 {[%clk 01:07:56]} {[%emt 00:08:31]} 7. Nxd4 {[%clk 00:57:40]}
{[%emt 00:03:03]} Bd7 {[%clk 00:59:40]} {[%emt 00:08:44]} 8. Nxc6 {[%clk
00:57:15]} {[%emt 00:00:55]} Bxc6 {[%clk 00:56:53]} {[%emt 00:03:17]} 9. Bxc6+
{[%clk 00:57:36]} {[%emt 00:00:09]} bxc6 {[%clk 00:57:15]} {[%emt 00:00:08]} 10.
O-O {[%clk 00:56:13]} {[%emt 00:01:53]} Be7 {[%clk 00:46:41]} {[%emt 00:11:04]}
11. Nd2 {[%clk 00:54:10]} {[%emt 00:02:33]} O-O {[%clk 00:41:03]} {[%emt
00:06:08]} 12. Re1 {[%clk 00:53:27]} {[%emt 00:01:12]} Nd7 {[%clk 00:27:44]}
{[%emt 00:13:50]} 13. Nf3 {[%clk 00:52:32]} {[%emt 00:01:25]} Ne5 {[%clk
00:24:19]} {[%emt 00:03:56]} 14. Nxe5 {[%clk 00:52:11]} {[%emt 00:00:50]} dxe5
{[%clk 00:24:36]} {[%emt 00:00:14]} 15. Be3 {[%clk 00:51:09]} {[%emt 00:01:31]}
Qxd1 {[%clk 00:18:53]} {[%emt 00:06:13]} 16. Rexd1 {[%clk 00:50:12]} {[%emt
00:01:26]} Rab8 {[%clk 00:17:03]} {[%emt 00:02:21]} 17. b3 {[%clk 00:45:37]}
{[%emt 00:05:05]} Rfd8 {[%clk 00:13:57]} {[%emt 00:03:35]} 18. Kf1 {[%clk
00:45:40]} {[%emt 00:00:27]} f6 {[%clk 00:10:21]} {[%emt 00:04:07]} 19. Ke2
{[%clk 00:45:41]} {[%emt 00:00:29]} Kf7 {[%clk 00:07:26]} {[%emt 00:03:26]} 20.
Rxd8 {[%clk 00:45:20]} {[%emt 00:00:49]} Rxd8 {[%clk 00:07:22]} {[%emt
00:00:34]} 21. Rd1 {[%clk 00:45:42]} {[%emt 00:00:08]} Rxd1 {[%clk 00:05:52]}
{[%emt 00:02:01]} 22. Kxd1 {[%clk 00:46:04]} {[%emt 00:00:07]} a5 {[%clk
00:04:22]} {[%emt 00:02:02]} 23. Kc2 {[%clk 00:45:06]} {[%emt 00:01:27]} Ke6
{[%clk 00:01:35]} {[%emt 00:03:17]} 24. Kd3 {[%clk 00:45:12]} {[%emt 00:00:24]}
Kd7 {[%clk 00:00:57]} {[%emt 00:01:08]} 25. Kc4 {[%clk 00:45:19]} {[%emt
00:00:22]} Bf8 {[%clk 00:00:39]} {[%emt 00:00:49]} 26. Bc5 {[%clk 00:42:46]}
{[%emt 00:03:02]} Bd6 {[%clk 00:00:43]} {[%emt 00:00:26]} 27. a4 {[%clk
00:43:08]} {[%emt 00:00:09]} Kc8 {[%clk 00:00:41]} {[%emt 00:00:32]} 28. b4
{[%clk 00:42:43]} {[%emt 00:00:55]} axb4 {[%clk 00:00:41]} {[%emt 00:00:31]} 29.
cxb4 {[%clk 00:42:14]} {[%emt 00:00:59]} Kb7 {[%clk 00:00:38]} {[%emt
00:00:32]} 30. g3 {[%clk 00:22:03]} {[%emt 00:20:41]} g6 {[%clk 00:00:48]}
{[%emt 00:00:21]} 31. g4 {[%clk 00:22:21]} {[%emt 00:00:11]} Ka6 {[%clk
00:00:38]} {[%emt 00:00:40]} 32. b5+ {[%clk 00:22:02]} {[%emt 00:00:49]} Kb7
{[%clk 00:00:37]} {[%emt 00:00:30]} 33. Bxd6 {[%clk 00:22:05]} {[%emt
00:00:27]} cxd6 {[%clk 00:01:03]} {[%emt 00:00:04]} 34. bxc6+ {[%clk 00:22:26]}
{[%emt 00:00:09]} Kxc6 {[%clk 00:01:21]} {[%emt 00:00:12]} 35. a5 {[%clk
00:22:46]} {[%emt 00:00:10]} h6 {[%clk 00:00:35]} {[%emt 00:01:17]} 36. a6
{[%clk 00:22:57]} {[%emt 00:00:18]} Kb6 {[%clk 00:00:40]} {[%emt 00:00:25]} 37.
Kd5 {[%clk 00:23:21]} {[%emt 00:00:06]} Kxa6 {[%clk 00:01:02]} {[%emt
00:00:08]} 38. Kxd6 {[%clk 00:23:46]} {[%emt 00:00:05]} Kb5 {[%clk 00:01:13]}
{[%emt 00:00:20]} 39. Ke6 {[%clk 00:23:53]} {[%emt 00:00:22]} Kc5 {[%clk
00:01:13]} {[%emt 00:00:30]} 40. Kxf6 {[%clk 00:24:10]} {[%emt 00:00:13]} Kd4
{[%clk 00:01:24]} {[%emt 00:00:19]} 41. Kxg6 {[%clk 00:23:33]} {[%emt
00:01:06]} Kxe4 {[%clk 00:01:40]} {[%emt 00:00:14]} 42. Kxh6 {[%clk 00:23:57]}
{[%emt 00:00:06]} Kf3 {[%clk 00:01:47]} {[%emt 00:00:23]} 43. g5 {[%clk
00:24:20]} {[%emt 00:00:06]} Kxf2 {[%clk 00:02:00]} {[%emt 00:00:17]} 44. g6
{[%clk 00:24:46]} {[%emt 00:00:05]} e4 {[%clk 00:02:24]} {[%emt 00:00:07]} 45.
g7 {[%clk 00:25:10]} {[%emt 00:00:05]} e3 {[%clk 00:02:49]} {[%emt 00:00:05]}
46. g8=Q {[%clk 00:25:26]} {[%emt 00:00:14]} e2 {[%clk 00:03:07]} {[%emt
00:00:11]} 47. Qg3+ {[%clk 00:25:36]} {[%emt 00:00:20]} Kf1 {[%clk 00:03:28]}
{[%emt 00:00:10]} 48. Qf3+ {[%clk 00:25:58]} {[%emt 00:00:08]} Ke1 {[%clk
00:03:42]} {[%emt 00:00:16]} 49. Kg5 {[%clk 00:26:15]} {[%emt 00:00:12]} Kd2
{[%clk 00:04:05]} {[%emt 00:00:08]} 50. Qf2 {[%clk 00:26:28]} {[%emt 00:00:16]}
Kd1 {[%clk 00:04:25]} {[%emt 00:00:10]} 51. Qd4+ {[%clk 00:26:49]} {[%emt
00:00:09]} Kc2 {[%clk 00:04:36]} {[%emt 00:00:20]} 52. Qe3 {[%clk 00:27:08]}
{[%emt 00:00:10]} Kd1 {[%clk 00:04:56]} {[%emt 00:00:12]} 53. Qd3+ {[%clk
00:27:24]} {[%emt 00:00:13]} Ke1 {[%clk 00:05:18]} {[%emt 00:00:07]} 54. Kf4
{[%clk 00:27:30]} {[%emt 00:00:24]} Kf2 {[%clk 00:05:34]} {[%emt 00:00:14]} 55.
Qf3+ {[%clk 00:27:16]} {[%emt 00:00:44]} Ke1 {[%clk 00:05:47]} {[%emt
00:00:17]} 56. Ke3 {[%clk 00:27:19]} {[%emt 00:00:26]} Kd1 {[%clk 00:06:10]}
{[%emt 00:00:09]} 57. Qxe2+ {[%clk 00:27:42]} {[%emt 00:00:07]} Kc1 {[%clk
00:06:36]} {[%emt 00:00:04]} 58. Kd3 {[%clk 00:27:55]} {[%emt 00:00:16]} Kb1
{[%clk 00:07:03]} {[%emt 00:00:05]} 59. Kc3 {[%clk 00:28:15]} {[%emt 00:00:08]}
Ka1 {[%clk 00:07:30]} {[%emt 00:00:04]} 60. Qb2# {[%clk 00:28:35]} {[%emt
00:00:09]} 1-0